fUST/lending_fUST_20250118
["ID","MTS","AMOUNT","RATE_DAILY","PERIOD"]
[349402437,1737166245775,-563.819652,0.00022053,7]
[349402439,1737166245784,-563.819652,0.00022053,7]
[349402441,1737166245793,-151.0,0.00022053,7]
[349402442,1737166245803,-812.24,0.00022053,3]
[349402445,1737166245812,-812.24,0.00022053,3]
[349402447,1737166245821,-812.24,0.00022053,3]
[349402448,1737166245831,-812.24,0.00022053,3]
[349402450,1737166245843,-812.45369977,0.00022053,3]
[349402452,1737166245853,-370.969747,0.00022053,7]
[349402454,1737166245862,-370.969747,0.00022053,7]
[349402456,1737166245871,-201.34932936,0.00022054,3]
[349402458,1737166245882,-513.2,0.00022054,3]
[349402461,1737166245891,-440.45,0.00022054,3]
[349402463,1737166245901,-286.06696284,0.00022054,3]
[349402464,1737166245911,-322.06,0.00022054,3]
[349402466,1737166245921,-500.0,0.00022054,3]
[349402469,1737166245930,-243.97,0.00022054,3]
[349402471,1737166245940,-196.08,0.00022054,3]
[349402473,1737166245949,-500.0,0.00022054,3]
[349402475,1737166245958,-151.360323,0.00022054,7]
[349402477,1737166245967,-227.448502,0.00022054,7]
[349402478,1737166245977,-500.0,0.00022054,3]
[349402481,1737166245987,-491.53660188,0.00022054,3]
[349402483,1737166245998,-151.0,0.00022054,7]
[349402485,1737166246008,-151.0,0.00022054,7]
[349402487,1737166246017,-517.55,0.00022054,3]
[349402488,1737166246026,-589.8,0.00022054,3]
[349402490,1737166246037,-156.300115,0.00022054,7]
[349402492,1737166246046,-360.05474767,0.00022054,3]
[349402494,1737166246056,-151.0,0.00022054,7]
[349402496,1737166246065,-151.0,0.00022054,7]
[349402499,1737166246075,-500.0,0.00022054,3]
[349402501,1737166246084,-500.0,0.00022054,3]
[349402503,1737166246093,-272.03,0.00022054,3]
[349402505,1737166246103,-500.0,0.00022054,3]
[349402507,1737166246112,-500.0,0.00022054,3]
[349402509,1737166246122,-500.0,0.00022054,3]
[349402511,1737166246131,-500.0,0.00022054,3]
[349402513,1737166246140,-560.97,0.00022054,3]
[349402515,1737166246149,-151.0,0.00022054,7]
[349402517,1737166246159,-442.34,0.00022054,3]
[349402519,1737166246168,-480.99,0.00022054,3]
[349402521,1737166246177,-275.94,0.00022054,3]
[349402523,1737166246187,-500.0,0.00022054,3]
[349402525,1737166246195,-614.88,0.00022054,3]
[349402527,1737166246205,-170.84,0.00022054,3]
[349402529,1737166246214,-500.0,0.00022054,3]
[349402531,1737166246223,-164.05883,0.00022054,7]
[349402533,1737166246233,-151.0,0.00022054,7]
[349402535,1737166246241,-500.0,0.00022054,3]
[349402536,1737166246251,-164.05883,0.00022054,7]
[349402539,1737166246261,-787.272823,0.00022054,7]
[349402541,1737166246270,-500.0,0.00022054,3]
[349402543,1737166246279,-787.272823,0.00022054,7]
[349402544,1737166246290,-391.52,0.00022054,3]
[349402546,1737166246299,-500.0,0.00022054,3]
[349402549,1737166246309,-612.4,0.00022054,3]
[349402552,1737166246318,-417.15,0.00022054,3]
[349402556,1737166246327,-276.01159,0.00022054,7]
[349402558,1737166246337,-151.0,0.00022054,7]
[349402559,1737166246346,-276.01159,0.00022054,7]
[349402561,1737166246355,-500.0,0.00022054,3]
[349402563,1737166246364,-764.39,0.00022054,3]
[349402565,1737166246374,-269.34,0.00022054,3]
[349402568,1737166246383,-500.0,0.00022054,3]
[349402569,1737166246392,-151.0,0.00022054,7]
[349402571,1737166246402,-767.93,0.00022054,3]
[349402573,1737166246411,-457.41098931,0.00022054,3]
[349402575,1737166246421,-500.0,0.00022054,3]
[349402578,1737166246431,-491.62,0.00022054,3]
[349402580,1737166246441,-664.42,0.00022054,3]
[349402582,1737166246451,-563.819652,0.00022054,7]
[349402584,1737166246460,-563.819652,0.00022054,7]
[349402586,1737166246470,-1390.67,0.00022054,3]
[349402588,1737166246479,-525.98,0.00022054,3]
[349402590,1737166246489,-151.0,0.00022054,7]
[349402592,1737166246499,-177.35,0.00022054,3]
[349402594,1737166246507,-500.0,0.00022054,2]
[349402596,1737166246516,-364.65456538,0.00022054,3]
[349402598,1737166246526,-934.5,0.00022054,3]
[349402600,1737166246536,-2534.07,0.00022054,3]
[349402602,1737166246546,-2794.44,0.00022054,3]
[349402604,1737166246555,-508.41,0.00022054,3]
[349402606,1737166246565,-500.0,0.00022054,3]
[349402608,1737166246575,-370.969747,0.00022054,7]
[349402610,1737166246585,-370.969747,0.00022054,7]
[349402612,1737166246594,-500.0,0.00022054,3]
[349402614,1737166246603,-378.00586994,0.00022054,3]
[349402616,1737166246612,-554.44,0.00022054,3]
[349402618,1737166246621,-426.350472,0.00022054,7]
[349402620,1737166246631,-426.350472,0.00022054,7]
[349402622,1737166246641,-500.0,0.00022054,3]
[349402624,1737166246650,-396.65,0.00022054,3]
[349402626,1737166246660,-426.350472,0.00022054,7]
[349402628,1737166246669,-426.350472,0.00022054,7]
[349402630,1737166246678,-4010.56,0.00022054,3]
[349402632,1737166246687,-927.63,0.00022054,3]
[349402634,1737166246696,-220.86,0.00022054,3]
[349402636,1737166246706,-160.37681475,0.00022054,3]
[349402638,1737166246715,-500.0,0.00022054,3]
[349402640,1737166246724,-500.0,0.00022054,3]
[349402642,1737166246733,-500.0,0.00022054,3]
[349402644,1737166246742,-184.67088874,0.00022054,3]
[349402646,1737166246751,-1788.16,0.00022054,3]
[349402648,1737166246760,-500.0,0.00022054,3]
[349402650,1737166246770,-151.0,0.00022054,7]
[349402652,1737166246779,-500.0,0.00022054,3]
[349402654,1737166246790,-151.0,0.00022054,7]
[349402656,1737166246799,-500.0,0.00022054,3]
[349402658,1737166246808,-151.0,0.00022054,7]
[349402660,1737166246817,-174.27383,0.00022054,7]
[349402662,1737166246827,-1049.43,0.00022054,3]
[349402664,1737166246839,-500.0,0.00022054,3]
[349402666,1737166246849,-199.60534923,0.00022054,3]
[349402668,1737166246859,-500.0,0.00022054,3]
[349402670,1737166246868,-500.0,0.00022054,3]
[349402672,1737166246878,-151.0,0.00022054,7]
[349402674,1737166246888,-151.0,0.00022054,7]
[349402676,1737166246897,-197.05336166,0.00022054,3]
[349402678,1737166246906,-500.0,0.00022054,3]
[349402680,1737166246916,-500.0,0.00022054,3]
[349402682,1737166246926,-500.0,0.00022054,3]
[349402684,1737166246935,-1069.4,0.00022054,3]
[349402686,1737166246945,-960.46,0.00022054,3]
[349402688,1737166246955,-500.0,0.00022054,3]
[349402690,1737166246965,-1384.48,0.00022054,3]
[349402692,1737166246975,-500.0,0.00022054,3]
[349402694,1737166246984,-903.02,0.00022054,3]
[349402696,1737166246994,-500.0,0.00022054,3]
[349402698,1737166247003,-249.3,0.00022054,3]
[349402700,1737166247012,-2998.29,0.00022054,3]
[349402702,1737166247022,-500.0,0.00022054,3]
[349402704,1737166247031,-500.0,0.00022054,3]
[349402706,1737166247042,-393.07,0.00022054,3]
[349402708,1737166247051,-500.0,0.00022054,3]
[349402710,1737166247060,-590.36,0.00022054,3]
[349402712,1737166247070,-198.05997682,0.00022054,3]
[349402714,1737166247079,-500.0,0.00022054,3]
[349402716,1737166247088,-500.0,0.00022054,3]
[349402718,1737166247098,-15380.6,0.00022054,3]
[349402720,1737166247107,-500.0,0.00022073,2]
[349402722,1737166247117,-11083.8575773,0.00022085,2]
[349402725,1737166247127,-151.0,0.000221,9]
[349402727,1737166247136,-151.0,0.000221,5]
[349402729,1737166247146,-259.635,0.00022123,2]
[349402731,1737166247156,-538.149,0.00022123,2]
[349402733,1737166247167,-2102.658,0.00022123,2]
[349402735,1737166247176,-2319.887,0.00022123,2]
[349402736,1737166247185,-201.34932936,0.00022131,3]
[349402738,1737166247195,-501.18816455,0.00022143,8]
[349402740,1737166247204,-603.44268794,0.00022143,8]
[349402743,1737166247213,-151.0,0.0002219,7]
[349402744,1737166247223,-151.0,0.0002219,7]
[349402746,1737166247232,-151.0,0.0002219,7]
[349402749,1737166247241,-151.0,0.0002219,7]
[349402751,1737166247251,-151.0,0.0002219,7]
[349402752,1737166247260,-151.0,0.0002219,7]
[349402755,1737166247269,-151.0,0.0002219,7]
[349402756,1737166247279,-787.272823,0.0002219,7]
[349402758,1737166247289,-787.272823,0.0002219,7]
[349402760,1737166247298,-276.01159,0.0002219,7]
[349402762,1737166247308,-276.01159,0.0002219,7]
[349402764,1737166247318,-151.0,0.0002219,7]
[349402766,1737166247328,-563.819652,0.0002219,7]
[349402768,1737166247337,-563.819652,0.0002219,7]
[349402770,1737166247347,-277.156852,0.0002219,7]
[349402772,1737166247356,-370.969747,0.0002219,7]
[349402774,1737166247366,-370.969747,0.0002219,7]
[349402776,1737166247376,-151.848912,0.00022191,7]
[349402778,1737166247386,-186.47,0.00022191,3]
[349402780,1737166247395,-500.0,0.00022191,3]
[349402782,1737166247404,-565.84506243,0.00022191,3]
[349402784,1737166247414,-151.0,0.00022191,7]
[349402786,1737166247423,-151.0,0.00022191,7]
[349402788,1737166247433,-151.0,0.00022191,7]
[349402790,1737166247442,-151.0,0.00022191,7]
[349402792,1737166247452,-500.0,0.00022191,3]
[349402794,1737166247461,-500.0,0.00022191,3]
[349402796,1737166247470,-500.0,0.00022191,3]
[349402798,1737166247479,-500.0,0.00022191,3]
[349402811,1737166247595,-500.0,0.00022191,3]
[349402813,1737166247604,-500.0,0.00022191,3]
[349402815,1737166247614,-151.0,0.00022191,7]
[349402817,1737166247623,-500.0,0.00022191,3]
[349402819,1737166247632,-500.0,0.00022191,3]
[349402821,1737166247642,-164.05883,0.00022191,7]
[349402823,1737166247652,-151.0,0.00022191,7]
[349402825,1737166247661,-500.0,0.00022191,3]
[349402827,1737166247671,-164.05883,0.00022191,7]
[349402829,1737166247680,-787.272823,0.00022191,7]
[349402831,1737166247690,-267.88,0.00022191,3]
[349402833,1737166247699,-787.272823,0.00022191,7]
[349402835,1737166247709,-500.0,0.00022191,3]
[349402837,1737166247718,-276.01159,0.00022191,7]
[349402839,1737166247727,-151.0,0.00022191,7]
[349402841,1737166247737,-276.01159,0.00022191,7]
[349402843,1737166247746,-500.0,0.00022191,3]
[349402845,1737166247756,-764.39,0.00022191,3]
[349402847,1737166247765,-500.0,0.00022191,3]
[349402849,1737166247775,-151.0,0.00022191,7]
[349402851,1737166247785,-767.93,0.00022191,3]
[349402853,1737166247795,-500.0,0.00022191,3]
[349402855,1737166247805,-664.42,0.00022191,3]
[349402857,1737166247815,-563.819652,0.00022191,7]
[349402859,1737166247824,-563.819652,0.00022191,7]
[349402861,1737166247836,-1390.67,0.00022191,3]
[349402863,1737166247849,-525.98,0.00022191,3]
[349402865,1737166247858,-500.0,0.00022191,2]
[349402867,1737166247868,-934.5,0.00022191,3]
[349402869,1737166247879,-2534.07,0.00022191,3]
[349402872,1737166247889,-2794.44,0.00022191,3]
[349402874,1737166247898,-508.41,0.00022191,3]
[349402875,1737166247908,-268.43,0.00022191,3]
[349402878,1737166247917,-370.969747,0.00022191,7]
[349402880,1737166247928,-370.969747,0.00022191,7]
[349402881,1737166247937,-500.0,0.00022191,3]
[349402884,1737166247947,-554.44,0.00022191,3]
[349402886,1737166247958,-426.350472,0.00022191,7]
[349402888,1737166247967,-500.0,0.00022191,3]
[349402889,1737166247976,-426.350472,0.00022191,7]
[349402892,1737166247986,-4010.56,0.00022191,3]
[349402893,1737166247995,-927.63,0.00022191,3]
[349402896,1737166248005,-500.0,0.00022191,3]
[349402898,1737166248014,-500.0,0.00022191,3]
[349402899,1737166248024,-382.51,0.00022191,3]
[349402901,1737166248033,-1788.16,0.00022191,3]
[349402903,1737166248044,-500.0,0.00022191,3]
[349402905,1737166248053,-500.0,0.00022191,3]
[349402907,1737166248063,-154.102568,0.00022191,7]
[349402909,1737166248072,-500.0,0.00022191,3]
[349402911,1737166248082,-1049.43,0.00022191,3]
[349402913,1737166248091,-500.0,0.00022191,3]
[349402915,1737166248101,-155.46,0.00022191,3]
[349402917,1737166248112,-500.0,0.00022191,3]
[349402919,1737166248121,-151.0,0.00022191,7]
[349402921,1737166248131,-500.0,0.00022191,3]
[349402923,1737166248141,-543.20047073,0.00022191,3]
[349402925,1737166248150,-1069.4,0.00022191,3]
[349402927,1737166248159,-960.46,0.00022191,3]
[349402929,1737166248168,-233.86,0.00022191,3]
[349402931,1737166248178,-1384.48,0.00022191,3]
[349402933,1737166248187,-500.0,0.00022191,3]
[349402935,1737166248196,-903.02,0.00022191,3]
[349402937,1737166248206,-206.25,0.00022191,3]
[349402939,1737166248215,-2998.29,0.00022191,3]
[349402941,1737166248224,-500.0,0.00022191,3]
[349402943,1737166248234,-500.0,0.00022191,3]
[349402945,1737166248243,-500.0,0.00022191,3]
[349402947,1737166248253,-590.36,0.00022191,3]
[349402949,1737166248263,-500.0,0.00022191,3]
[349402951,1737166248273,-500.0,0.00022191,3]
[349402953,1737166248283,-15380.6,0.00022191,3]
[349402955,1737166248294,-151.0,0.00022198,7]
[349402957,1737166248304,-492.14,0.000222,2]
[349402959,1737166248314,-152.785976,0.000222,7]
[349402960,1737166248324,-151.0,0.000222,7]
[349402961,1737166248333,-151.0,0.000222,5]
[349402962,1737166248343,-151.0,0.000222,7]
[349402963,1737166248352,-620.0,0.000222,2]
[349402964,1737166248362,-201.34932936,0.00022208,3]
[349402965,1737166248372,-11083.85757731,0.00022234,2]
[349402966,1737166248382,-201.34932936,0.00022285,3]
[349402967,1737166248392,-152.235883,0.00022285,7]
[349402968,1737166248402,-164.05883,0.00022294,7]
[349402969,1737166248412,-164.05883,0.00022294,7]
[349402970,1737166248421,-151.0,0.000223,5]
[349402971,1737166248431,-151.848912,0.00022328,7]
[349402972,1737166248441,-151.0,0.00022328,7]
[349402974,1737166248451,-500.0,0.00022328,3]
[349402976,1737166248460,-151.0,0.00022328,7]
[349402978,1737166248469,-237.856466,0.00022328,7]
[349402980,1737166248479,-151.0,0.00022328,7]
[349402982,1737166248488,-151.0,0.00022328,7]
[349402984,1737166248497,-206.18190584,0.00022328,3]
[349402986,1737166248506,-500.0,0.00022328,3]
[349402988,1737166248516,-321.18348948,0.00022328,3]
[349402990,1737166248526,-500.0,0.00022328,3]
[349402992,1737166248541,-500.0,0.00022328,3]
[349402994,1737166248550,-500.0,0.00022328,3]
[349402996,1737166248560,-151.0,0.00022328,7]
[349402998,1737166248569,-500.0,0.00022328,3]
[349403000,1737166248578,-500.0,0.00022328,3]
[349403002,1737166248588,-164.05883,0.00022328,7]
[349403004,1737166248598,-151.0,0.00022328,7]
[349403006,1737166248607,-500.0,0.00022328,3]
[349403008,1737166248616,-164.05883,0.00022328,7]
[349403010,1737166248625,-787.272823,0.00022328,7]
[349403012,1737166248635,-787.272823,0.00022328,7]
[349403014,1737166248645,-500.0,0.00022328,3]
[349403016,1737166248655,-276.01159,0.00022328,7]
[349403017,1737166248665,-151.0,0.00022328,7]
[349403019,1737166248674,-276.01159,0.00022328,7]
[349403021,1737166248683,-500.0,0.00022328,3]
[349403023,1737166248693,-764.39,0.00022328,3]
[349403025,1737166248702,-500.0,0.00022328,3]
[349403027,1737166248711,-151.0,0.00022328,7]
[349403029,1737166248720,-767.93,0.00022328,3]
[349403031,1737166248730,-500.0,0.00022328,3]
[349403033,1737166248740,-664.42,0.00022328,3]
[349403035,1737166248749,-563.819652,0.00022328,7]
[349403038,1737166248760,-563.819652,0.00022328,7]
[349403040,1737166248770,-1390.67,0.00022328,3]
[349403041,1737166248780,-525.98,0.00022328,3]
[349403044,1737166248790,-500.0,0.00022328,2]
[349403046,1737166248800,-934.5,0.00022328,3]
[349403048,1737166248809,-2534.07,0.00022328,3]
[349403049,1737166248819,-2794.44,0.00022328,3]
[349403051,1737166248829,-508.41,0.00022328,3]
[349403054,1737166248842,-370.969747,0.00022328,7]
[349403056,1737166248851,-370.969747,0.00022328,7]
[349403058,1737166248861,-500.0,0.00022328,3]
[349403060,1737166248871,-554.44,0.00022328,3]
[349403062,1737166248883,-426.350472,0.00022328,7]
[349403064,1737166248893,-500.0,0.00022328,3]
[349403066,1737166248902,-426.350472,0.00022328,7]
[349403068,1737166248911,-426.350472,0.00022328,7]
[349403069,1737166248921,-426.350472,0.00022328,7]
[349403072,1737166248931,-4010.56,0.00022328,3]
[349403074,1737166248941,-927.63,0.00022328,3]
[349403075,1737166248950,-648.4383129,0.00022328,3]
[349403077,1737166248960,-500.0,0.00022328,3]
[349403079,1737166248969,-1788.16,0.00022328,3]
[349403082,1737166248979,-500.0,0.00022328,3]
[349403083,1737166248988,-598.29088366,0.00022328,3]
[349403085,1737166248998,-500.0,0.00022328,3]
[349403087,1737166249008,-1049.43,0.00022328,3]
[349403089,1737166249018,-509.78878949,0.00022328,3]
[349403091,1737166249028,-500.0,0.00022328,3]
[349403094,1737166249039,-500.0,0.00022328,3]
[349403096,1737166249049,-1069.4,0.00022328,3]
[349403098,1737166249058,-960.46,0.00022328,3]
[349403100,1737166249067,-1384.48,0.00022328,3]
[349403102,1737166249076,-500.0,0.00022328,3]
[349403104,1737166249086,-903.02,0.00022328,3]
[349403106,1737166249096,-2998.29,0.00022328,3]
[349403108,1737166249105,-500.0,0.00022328,3]
[349403109,1737166249114,-500.0,0.00022328,3]
[349403111,1737166249123,-500.0,0.00022328,3]
[349403113,1737166249133,-590.36,0.00022328,3]
[349403115,1737166249142,-500.0,0.00022328,3]
[349403117,1737166249151,-500.0,0.00022328,3]
[349403119,1737166249163,-15380.6,0.00022328,3]
[349403121,1737166249174,-201.34932936,0.00022362,3]
[349403123,1737166249187,-292.6233312,0.00022381,2]
[349403125,1737166249197,-501.80916694,0.00022398,2]
[349403127,1737166249207,-1894.71,0.000224,14]
[349403129,1737166249217,-4892.62,0.000224,14]
[349403131,1737166249227,-151.0,0.000224,9]
[349403133,1737166249236,-151.0,0.000224,8]
[349403135,1737166249246,-154.0,0.00022424,2]
[349403137,1737166249255,-154.0,0.00022424,2]
[349403139,1737166249265,-154.0,0.00022424,2]
[349403141,1737166249275,-154.0,0.00022424,2]
[349403143,1737166249285,-201.34932936,0.00022438,3]
[349403145,1737166249298,-151.0,0.00022447,7]
[349403147,1737166249308,-161.87933694,0.00022463,2]
[349403149,1737166249318,-1585.0,0.00022464,4]
[349403151,1737166249328,-151.0,0.00022464,7]
[349403153,1737166249337,-151.0,0.00022464,7]
[349403155,1737166249347,-202.781069,0.00022464,7]
[349403157,1737166249356,-151.0,0.00022464,7]
[349403159,1737166249365,-216.549577,0.00022464,7]
[349403161,1737166249375,-164.05883,0.00022464,7]
[349403163,1737166249384,-151.0,0.00022464,7]
[349403165,1737166249394,-164.05883,0.00022464,7]
[349403167,1737166249403,-787.272823,0.00022464,7]
[349403169,1737166249412,-787.272823,0.00022464,7]
[349403171,1737166249421,-276.01159,0.00022464,7]
[349403173,1737166249431,-151.0,0.00022464,7]
[349403175,1737166249441,-276.01159,0.00022464,7]
[349403177,1737166249450,-151.0,0.00022464,7]
[349403179,1737166249460,-563.819652,0.00022464,7]
[349403181,1737166249470,-563.819652,0.00022464,7]
[349403183,1737166249480,-370.969747,0.00022464,7]
[349403185,1737166249490,-370.969747,0.00022464,7]
[349403187,1737166249499,-298.97213229,0.00022465,5]
[349403189,1737166249508,-151.0,0.00022465,7]
[349403191,1737166249518,-151.848912,0.00022465,7]
[349403193,1737166249527,-151.848912,0.00022465,7]
[349403195,1737166249538,-151.0,0.00022465,7]
[349403197,1737166249548,-500.0,0.00022465,3]
[349403199,1737166249557,-151.0,0.00022465,7]
[349403201,1737166249566,-151.0,0.00022465,7]
[349403203,1737166249575,-462.9968211,0.00022465,3]
[349403205,1737166249585,-500.0,0.00022465,3]
[349403207,1737166249594,-500.0,0.00022465,3]
[349403209,1737166249603,-500.0,0.00022465,3]
[349403211,1737166249612,-216.139302,0.00022465,7]
[349403213,1737166249621,-216.549577,0.00022465,7]
[349403215,1737166249630,-171.67682272,0.00022465,3]
[349403217,1737166249640,-500.0,0.00022465,3]
[349403219,1737166249649,-151.0,0.00022465,7]
[349403221,1737166249658,-500.0,0.00022465,3]
[349403223,1737166249667,-787.272823,0.00022465,7]
[349403225,1737166249677,-787.272823,0.00022465,7]
[349403227,1737166249685,-500.0,0.00022465,3]
[349403229,1737166249695,-276.01159,0.00022465,7]
[349403231,1737166249704,-151.0,0.00022465,7]
[349403233,1737166249714,-276.011597,0.00022465,7]
[349403235,1737166249723,-228.4708301,0.00022465,3]
[349403236,1737166249732,-764.39,0.00022465,3]
[349403238,1737166249741,-500.0,0.00022465,3]
[349403240,1737166249751,-151.0,0.00022465,7]
[349403242,1737166249761,-767.93,0.00022465,3]
[349403244,1737166249770,-500.0,0.00022465,3]
[349403246,1737166249780,-664.42,0.00022465,3]
[349403249,1737166249791,-563.819652,0.00022465,7]
[349403250,1737166249800,-1390.67,0.00022465,3]
[349403252,1737166249810,-563.819642,0.00022465,7]
[349403254,1737166249819,-525.98,0.00022465,3]
[349403255,1737166249829,-500.0,0.00022465,2]
[349403257,1737166249842,-934.5,0.00022465,3]
[349403259,1737166249852,-2534.07,0.00022465,3]
[349403260,1737166249862,-2794.44,0.00022465,3]
[349403262,1737166249872,-508.41,0.00022465,3]
[349403264,1737166249882,-370.969747,0.00022465,7]
[349403265,1737166249892,-370.969749,0.00022465,7]
[349403267,1737166249901,-500.0,0.00022465,3]
[349403269,1737166249915,-554.44,0.00022465,3]
[349403271,1737166249925,-500.0,0.00022465,3]
[349403273,1737166249934,-426.350472,0.00022465,7]
[349403274,1737166249944,-426.35047,0.00022465,7]
[349403276,1737166249953,-4010.56,0.00022465,3]
[349403278,1737166249964,-927.63,0.00022465,3]
[349403279,1737166249974,-500.0,0.00022465,3]
[349403281,1737166249983,-1788.16,0.00022465,3]
[349403282,1737166249992,-500.0,0.00022465,3]
[349403284,1737166250002,-500.0,0.00022465,3]
[349403286,1737166250012,-1049.43,0.00022465,3]
[349403287,1737166250021,-500.0,0.00022465,3]
[349403289,1737166250032,-500.0,0.00022465,3]
[349403291,1737166250043,-1069.4,0.00022465,3]
[349403293,1737166250052,-960.46,0.00022465,3]
[349403294,1737166250061,-1384.48,0.00022465,3]
[349403296,1737166250071,-500.0,0.00022465,3]
[349403297,1737166250080,-903.02,0.00022465,3]
[349403299,1737166250090,-2998.29,0.00022465,3]
[349403301,1737166250099,-500.0,0.00022465,3]
[349403303,1737166250108,-500.0,0.00022465,3]
[349403305,1737166250117,-500.0,0.00022465,3]
[349403306,1737166250127,-590.36,0.00022465,3]
[349403308,1737166250136,-500.0,0.00022465,3]
[349403310,1737166250146,-500.0,0.00022465,3]
[349403311,1737166250155,-15380.6,0.00022465,3]
[349403313,1737166250164,-151.0,0.000225,5]
[349403315,1737166250173,-151.0,0.000225,9]
[349403316,1737166250182,-201.34932936,0.00022515,3]
[349403318,1737166250191,-201.34932936,0.00022592,3]
[349403320,1737166250200,-151.0,0.000226,5]
[349403322,1737166250209,-151.0,0.000226,7]
[349403323,1737166250218,-164.05883,0.00022601,7]
[349403325,1737166250227,-164.058838,0.00022601,7]
[349403327,1737166250236,-151.848912,0.00022602,7]
[349403328,1737166250245,-151.848912,0.00022602,7]
[349403330,1737166250255,-151.0,0.00022602,7]
[349403332,1737166250264,-500.0,0.00022602,3]
[349403334,1737166250273,-151.0,0.00022602,7]
[349403335,1737166250282,-151.0,0.00022602,7]
[349403337,1737166250292,-500.0,0.00022602,3]
[349403339,1737166250301,-500.0,0.00022602,3]
[349403341,1737166250310,-500.0,0.00022602,3]
[349403342,1737166250320,-216.549575,0.00022602,7]
[349403344,1737166250330,-500.0,0.00022602,3]
[349403346,1737166250339,-500.0,0.00022602,3]
[349403348,1737166250348,-259.510422,0.00022602,7]
[349403349,1737166250358,-787.272823,0.00022602,7]
[349403359,1737166250469,-787.272825,0.00022602,7]
[349403361,1737166250478,-500.0,0.00022602,3]
[349403363,1737166250488,-764.39,0.00022602,3]
[349403365,1737166250497,-500.0,0.00022602,3]
[349403366,1737166250506,-767.93,0.00022602,3]
[349403368,1737166250515,-500.0,0.00022602,3]
[349403370,1737166250525,-664.42,0.00022602,3]
[349403371,1737166250535,-1390.67,0.00022602,3]
[349403373,1737166250546,-525.98,0.00022602,3]
[349403375,1737166250556,-500.0,0.00022602,2]
[349403377,1737166250565,-934.5,0.00022602,3]
[349403379,1737166250575,-2534.07,0.00022602,3]
[349403381,1737166250584,-2794.44,0.00022602,3]
[349403382,1737166250594,-508.41,0.00022602,3]
[349403384,1737166250604,-599.32441481,0.00022602,3]
[349403386,1737166250613,-554.44,0.00022602,3]
[349403388,1737166250622,-500.0,0.00022602,3]
[349403390,1737166250631,-4010.56,0.00022602,3]
[349403392,1737166250641,-927.63,0.00022602,3]
[349403393,1737166250649,-500.0,0.00022602,3]
[349403395,1737166250660,-1788.16,0.00022602,3]
[349403397,1737166250670,-500.0,0.00022602,3]
[349403399,1737166250679,-500.0,0.00022602,3]
[349403401,1737166250688,-1049.43,0.00022602,3]
[349403403,1737166250698,-500.0,0.00022602,3]
[349403404,1737166250707,-500.0,0.00022602,3]
[349403406,1737166250716,-1069.4,0.00022602,3]
[349403408,1737166250725,-960.46,0.00022602,3]
[349403410,1737166250734,-1384.48,0.00022602,3]
[349403412,1737166250743,-500.0,0.00022602,3]
[349403413,1737166250753,-903.02,0.00022602,3]
[349403415,1737166250763,-2998.29,0.00022602,3]
[349403417,1737166250773,-500.0,0.00022602,3]
[349403419,1737166250783,-500.0,0.00022602,3]